{"text_format":"1","workbook":"xlsx","n_sheets":25,"sheets":["Start","Tab0","Tab1","Tab2","Tab3","Tab4","Tab5","Tab6","VNS1","VNS2","VNS3","VNS4","AusAn","Aufteilung","Betreuer","Updates","Liste","transfer","VB_B","VB_F","Modul_Test","VBDial","VBSeit","VBPlan","Rechenhilfe Beleg"],"not_rendered":{"charts":0,"images":3,"macros":1,"external_links":0,"defined_names":26,"comments":2,"pivot_tables":3},"unopened":[{"sheet":"VB_B","index":18,"reason":"part_missing"},{"sheet":"VB_F","index":19,"reason":"part_missing"},{"sheet":"Modul_Test","index":20,"reason":"part_missing"},{"sheet":"VBDial","index":21,"reason":"part_missing"},{"sheet":"VBSeit","index":22,"reason":"part_missing"},{"sheet":"VBPlan","index":23,"reason":"part_missing"}],"bounds":{"document_bytes":16777216,"sheet_cells":100000,"rows_first":2000,"rows_last":500,"rows_between":2000,"halvings":0,"cell_chars":16384,"cell_head_chars":4096},"cells_cut":0,"cells_raw":0,"read":"whole","date_system":"1900"}

{"sheet":"Start","index":0,"n_rows":1,"n_cols":1,"rows_kept":1,"cut":false,"hidden":false,"merged":[]}
[1]

{"sheet":"Tab0","index":1,"n_rows":10,"n_cols":2,"rows_kept":10,"cut":false,"hidden":false,"merged":[]}
[]
[null,"Betriebsdaten"]
[]
[null,"Kostenbelege"]
[]
[null,"Finanzmittel"]
[]
[null,"Verwendungs-nachweis"]
[]
[null,"Auszahlungs-antrag"]

{"sheet":"Tab1","index":2,"n_rows":72,"n_cols":34,"rows_kept":72,"cut":false,"hidden":false,"merged":[[28,8,28,10],[45,4,45,7]]}
[null,null,null,null,null,null,null,null,null,null,null,null,null,null,null,"Kostengruppe","Ber.","Ausgabengruppen",null,null,"Nr.","Finanzen",null,"Num","AusGruppen",null,"Num","Kreisstellen",null,null,"Ausgabenkomp",null,null,"keine Angabe"]
[null,null,"Skonto%",1,1,"UST%;USt€",null,null,null,null,null,null,11,1,11,"GAK: Errichtung, Modernisierung",1,"Errichtung (GAK)",null,null,1,"Zuschuss GAKG",1,1,"GAK Landkauf, Grundstück",null,1,"Aachen","VE Düren",1,{"$f":"O2&\" \" &P2","v":"11 GAK: Errichtung, Modernisierung"},null,"Aachen","VE Düren"]
[null,null,null,1,1,19,null,null,null,null,null,null,21,2,21,"GAK: Kauf Maschinen/Anlagen",2,"Maschinen Anlagen (GAK)",null,null,2,"Zuschuss Organisationausgaben",2,2,"GAK Erschließung",null,2,"Borken","VE Borken",2,"21 GAK: Kauf Maschinen/Anlagen",null,"Borken","VE Borken"]
[null,null,null,2018,2018,null,null,null,null,null,null,null,31,3,31,"GAK: Allg. Aufwand: Architekt",3,"Allg. Aufwand (GAK)",null,null,3,"Zuschuss Ausstattung/Einrichtung",3,3,"GAK Bauwerk / Konstruktion",null,3,"Coesfeld","VE Coesfeld",3,"31 GAK: Allg. Aufwand: Architekt",null,"Coesfeld","VE Coesfeld"]
[null,null,null,{"$f":"DATE(D4,D3,D2)","v":"2018-01-01"},{"$f":"DATE(E4,E3,E2)","v":"2018-01-01"},null,null,null,null,null,null,null,32,4,32,"GAK: Allg. Aufwand: Ingenieurl.",3,"Allg. Aufwand (GAK)",null,null,4,"Zuschuss Marketingmaßnahmen",4,4,"GAK Bauwerk / Techn. Anlagen",null,4,"Düren","VE Düren",4,"32 GAK: Allg. Aufwand: Ingenieurl.",null,"Düren","VE Düren"]
[{"$f":"D22","v":1},null,null,{"$f":"D5","v":"2018-01-01"},{"$f":"E5","v":"2018-01-01"},null,0,0,0,0,0,null,33,5,33,"GAK: Allg. Aufwand: Beratung",3,"Allg. Aufwand (GAK)",null,null,5,"Zuschuss Startbeihilfen 1. Jahr",5,5,"GAK Außenanlagen",null,5,"Euskirchen","VE Düren",5,"33 GAK: Allg. Aufwand: Beratung",null,"Euskirchen","VE Düren"]
["Buchung","Beleg","DIN","R-Datum","Z-Datum","Aussteller Zweck","Ausgabe","nicht-Skont.","nzfBetr Netto","anteilUSt","Netto",null,34,6,34,"GAK: Allg. Aufwand: Lizenzen",3,"Allg. Aufwand (GAK)",null,null,6,"Zuschuss Startbeihilfen 2. Jahr",6,6,"GAK Ausstattung",null,6,"Gütersloh","VE Warendorf",6,"34 GAK: Allg. Aufwand: Lizenzen",null,"Gütersloh","VE Warendorf"]
[null,null,null,null,null,"",null,null,null,null,null,null,35,7,35,"GAK: Allg. Aufw: Baunebenkosten",3,"Allg. Aufwand (GAK)",null,null,7,"Zuschuss Startbeihilfen 3. Jahr",7,7,"Nebenkosten",null,7,"Heinsberg","VE Viersen",7,"35 GAK: Allg. Aufw: Baunebenkosten",null,"Heinsberg","VE Viersen"]
[null,{"$f":"\"Betrieb: \"& D10 &\", \"& D11&\"; Nr. \"&D12","v":"Betrieb: , ; Nr. "},null,null,null,null,null,null,null,null,null,null,41,8,41,"Organisation-Beratung",4,"Organisation",null,null,8,"Zuschuss Qualifizierungsmaßnahmen",8,8,"Maschinen / Innenwirtschaft",null,8,"Herford-Bielefeld","VE Lübbecke",8,"41 Organisation-Beratung",null,"Herford-Bielefeld","VE Lübbecke"]
[null,"Name",null,null,null,null,"5. USt",0,{"$f":"K6+J6","v":0},"föfä brutto",null,null,42,9,42,"Organisation-Konzeption",4,"Organisation",null,null,9,"Barmittel (Guthaben)",9,9,"Maschinen /Außenwirtschaft",null,9,"Hochsauerland","VE Meschede",9,"42 Organisation-Konzeption",null,"Hochsauerland","VE Meschede"]
[null,"Ort",null,null,null,null,null,null,null,null,null,null,43,10,43,"Organisation-Geschäftsausgaben",4,"Organisation",null,null,10,"Steuer-Erstattung",10,10,"Viehzukauf",null,10,"Höxter","VE Brakel",10,"43 Organisation-Geschäftsausgaben",null,"Höxter","VE Brakel"]
[null,"B.-Nr.",null,"",null,null,null,null,null,null,null,null,51,11,51,"1.J. Startbeihilfen (Löhne/Soz.Abg)",5,"Startbeihilfen 1. Jahr",null,null,11,"Anderweitige Fördermittel",11,11,"Ablösung Verbindlichkeiten",null,11,"Kleve","VE Kleve",11,"51 1.J. Startbeihilfen (Löhne/Soz.Abg)",null,"Kleve","VE Kleve"]
[null,"Option:",null,66655665,2,"Auswahl der Optionen",null,null,null,null,null,null,52,12,52,"2.J. Startbeihilfen (Löhne/Soz.Abg)",6,"Startbeihilfen 2. Jahr",null,null,12,"Kontokorrent",12,12,"Finanzierungsnebenkosten",null,12,"Lippe","VE Brakel",12,"52 2.J. Startbeihilfen (Löhne/Soz.Abg)",null,"Lippe","VE Brakel"]
[null,"Anschrift:",null,null,null,null,null,null,null,null,null,null,53,13,53,"3.J. Startbeihilfen (Löhne/Soz.Abg)",7,"Startbeihilfen 2. Jahr",null,null,13,"Fremdkapital (Kredite)",13,13,"Organisation, Konzept",null,13,"Märkischer Kreis/Ennepe-Ruhr","VE Unna",13,"53 3.J. Startbeihilfen (Löhne/Soz.Abg)",null,"Märkischer Kreis/Ennepe-Ruhr","VE Unna"]
[null,"Bankverbindg",null,null,null,"",null,"",null,null,null,null,61,14,61,"SachAusg. Errichtung/Ausst.",8,"Sachausgaben Einr/Ausst",null,null,14,"Leistungen Dritter",14,14,"Startbeihilfen",null,14,"Mettmann","VE Lindlar",14,"61 SachAusg. Errichtung/Ausst.",null,"Mettmann","VE Lindlar"]
[null,"Buchung in",null,1,null,"Euro",null,null,null,null,null,null,62,15,62,"SachAusg. Marketing/Sonstiges",9,"Sachausgaben Marketing,So.",null,null,null,null,null,15,"Strategiekonzept Umsetzung",null,15,"Minden-Lübbecke","VE Lübbecke",15,"62 SachAusg. Marketing/Sonstiges",null,"Minden-Lübbecke","VE Lübbecke"]
[null,null,null,null,null,null,null,null,null,null,null,null,71,16,71,"Qualifizierungsmaßnahmen",10,"Bildungsmaßnahmen",null,null,null,null,null,16,"Qualifizierung",null,16,"Münster","VE Warendorf",16,"71 Qualifizierungsmaßnahmen",null,"Münster","VE Warendorf"]
[null,"Belege",null,0,null,null,null,null,null,null,null,null,99,17,99,"nicht förderfähige Kosten",11,"Sonstiges",null,null,null,null,null,17,"Sonstige Kosten",null,17,"Oberbergischer Kreis","VE Lindlar",17,"99 nicht förderfähige Kosten",null,"Oberbergischer Kreis","VE Lindlar"]
[null,"Lauf",null,true,null,null,null,null,null,null,null,null,null,null,null,null,null,null,null,null,null,null,null,null,null,null,18,"Olpe","VE Meschede",null,{"$f":"O19&\"   \" &P19","v":"   "},null,"Olpe","VE Meschede"]
[null,"das_wars",null,true,null,null,null,null,null,null,null,null,null,51,null,null,null,null,null,null,null,null,null,2,{"$f":"VLOOKUP(X20,AusGruppen,2,1)","v":"GAK Erschließung"},null,19,"Paderborn","VE Brakel",null,"   ",null,"Paderborn","VE Brakel"]
[null,"Splitten(1=ja)",null,7,null,"1= ja;  2=nein",null,null,null,null,null,null,null,{"$f":"VLOOKUP(N20,M2:N18,2,FALSE)","v":11},null,null,null,null,null,null,null,null,null,null,null,null,20,"Recklinghausen","VE Coesfeld",null,"   ",null,"Recklinghausen","VE Coesfeld"]
[null,"letzteZeile",null,1,null,"Vor erster Buchung eine 1 eintragen",null,null,null,null,null,null,null,null,null,null,null,null,null,null,null,null,null,null,null,null,21,"Rhein-Erft-Kreis","VE Köln-Auweiler",null,"   ",null,"Rhein-Erft-Kreis","VE Köln-Auweiler"]
[null,"Ganzer Betrag",null,0,null,null,null,null,null,null,null,null,null,null,null,null,null,null,null,null,null,"in U16 war:",null,null,null,null,22,"Rheinisch-Bergischer-Kreis","VE Lindlar",null,"   ",null,"Rheinisch-Bergischer-Kreis","VE Lindlar"]
[null,"Restbetrag",null,0,null,10000,null,null,null,null,null,null,null,null,null,null,"Ber.","Ausgabengruppen",null,null,null,"=SVERWEIS(V16;V2:W15;2;0)",null,null,null,null,23,"Rhein-Kreis Neuss","VE Köln-Auweiler",null,"   ",null,"Rhein-Kreis Neuss","VE Köln-Auweiler"]
[null,"Splitt_erlaubt",null,2,null,"1= ja;  2=nein",null,null,null,null,null,null,null,null,null,null,1,"(GAK) Errichtung, Modernisierung",1,null,null,null,null,null,null,null,24,"Rhein-Sieg-Kreis","VE Köln-Auweiler",null,"   ",null,"Rhein-Sieg-Kreis","VE Köln-Auweiler"]
[null,"zuviel verteilt",null,2,null,"1= ja;  2=nein",null,null,null,null,null,null,null,null,null,null,2,"(GAK) Maschinen/Anlagen",2,null,null,null,null,null,null,null,25,"Ruhr-Lippe","VE Unna",null,"   ",null,"Ruhr-Lippe","VE Unna"]
[null,"KG DIN 276",null,1,null,{"$f":"INDEX(Ausgaben,D27,2)","v":11},{"$f":"VLOOKUP(D27,Ausgaben,3)","v":"GAK: Errichtung, Modernisierung"},null,null,null,null,null,null,null,null,null,3,"(GAK) Allg. Aufwand",3,null,null,null,null,null,null,null,26,"Siegen-Wittgenstein","VE Meschede",null,{"$f":"O27&\"   \" &P27","v":"   "},null,"Siegen-Wittgenstein","VE Meschede"]
[null,"Beleg",null,1,null,null,null,null,"Zwischenspeicher aus Combobox",null,null,null,null,null,null,null,4,"Organisationsausgaben",4,null,null,null,null,null,null,null,27,"Soest","VE Soest",null,"   ",null,"Soest","VE Soest"]
[null,"Art der Mittel",null,{"$f":"VLOOKUP(I29,V2:W15,2,0)","v":1},null,null,{"$f":"INDEX(Einnahmen,D29,2)","v":"Zuschuss GAKG"},null,"Zuschuss GAKG",null,null,null,null,null,null,null,5,"1. Jahr Startbeihilfen",5,null,null,null,null,null,null,null,28,"Steinfurt","VE Steinfurt",null,"   ",null,"Steinfurt","VE Steinfurt"]
[null,"Betrag",null,0,null,null,null,null,null,null,null,null,null,null,null,null,6,"2. Jahr Startbeihilfen",6,null,null,null,null,null,null,null,29,"Viersen","VE Viersen",null,"   ",null,"Viersen","VE Viersen"]
[null,"Zugangsdatum",null,{"$f":"F31","v":"2018-01-01"},null,{"$f":"DATE(I31,H31,G31)","v":"2018-01-01"},1,1,2018,null,null,null,null,null,null,null,7,"3. Jahr Startbeihilfen",7,null,null,null,null,null,null,null,30,"Warendorf","VE Warendorf",null,"   ",null,"Warendorf","VE Warendorf"]
[null,"letzteBelegZ",null,1,null,"Vor erster Buchung eine 1 eintragen",null,null,null,null,null,null,null,null,null,null,8,"Einrichtung/Ausstattung (Sachausg.)",8,null,null,null,null,null,null,null,31,"Wesel","VE Wesel",null,"   ",null,"Wesel","VE Wesel"]
[null,"nichtmehr",null,false,null,null,null,null,null,null,null,null,null,null,null,null,9,"Marketing, Sonst. (Sachausg.)",9,null,null,null,null,null,null,null,null,null,null,null,"   "]
[null,"Kostenplan",null,19,0,0,0,{"$f":"Q37","v":1},null,null,null,null,null,null,null,null,10,"Qualifizierungsmaßnahmen",10,null,null,null,null,null,null,null,null,null,null,null,"   "]
[null,"Gruppe",null,{"$f":"VALUE(F35)","v":1},300,{"$f":"VLOOKUP(F27,Kontengruppen,3,2)","v":1},null,null,{"$f":"\"Zuletzt: \" & R37","v":"Zuletzt: (GAK) Errichtung, Modernisierung"},null,null,null,null,null,null,null,11,"Sonstiges",11,null,null,null,null,null,null,null,null,null,null,null,"   "]
[null,null,null,null,null,"SVERWEIS(F27;Kontengruppen;3;2)",null,null,null,null,null,null,null,null,null,null,null,null,null,null,null,null,null,null,null,null,null,null,null,null,"   "]
["KOSTEN",null,null,null,null,{"$f":"ROUND(E34*D34/(100+D34),2)","v":0},{"$f":"E34-F37","v":0},null,null,null,null,null,null,null,null,null,{"$f":"VLOOKUP(R37,R25:S35,2,0)","v":1},"(GAK) Errichtung, Modernisierung",null,null,null,null,null,null,null,null,null,null,null,null,{"$f":"O37&\"   \" &P37","v":"   "}]
[null,"KGrup",null,1,{"$f":"VLOOKUP(D38,AusGruppen,2,TRUE)","v":"GAK Landkauf, Grundstück"},null,21,null,null,null,null,null,null,null,null,null,null,null,null,null,null,null,null,null,null,null,null,null,null,null,"   "]
[null,null,null,null,null,null,null,null,null,null,null,null,null,null,null,null,null,null,null,null,null,null,null,null,null,null,null,null,null,null,"   "]
["Nr. Abrechngsj",null,1,2,"VE Rheinkreise",null,null,null,null,null,null,null,null,null,null,null,null,null,null,null,null,null,null,null,null,null,null,null,null,null,{"$f":"O47&\"   \" &P47","v":"   "}]
["Nr AuszAntrag",null,1]
["Nr. Grundantrag",null,1]
["Grundantragsjahr",null,1]
["FINANZPLAN"]
[null,null,"Gruppe","Betrag","Text"]
[null,null,{"$f":"U16","v":0},900,{"$f":"V16","v":0}]
[null,null,null,null,{"$f":"\"zuletzt gespeichert: \" & E46 & \": \"&D46","v":"zuletzt gespeichert: 0: 900"}]
[]
[]
[]
[]
[]
[]
[]
[]
[null,"Testbereich"]
[1,"Zahlung ",null,1500]
[2,"nichtSk",null,0]
[3,"nzfB",null,0]
[4,"davUSt",null,0]
[5,"USt FF",null,239.5]
[6,"zfB",null,1260.5]
[null,"USAtz",null,0.84033613445378152]
[]
[]
[]
[]
[]
[]
[]
[]
[null,null,null,null,null,null,null,null,{"$f":"1190/100","v":11.9}]

{"sheet":"Tab2","index":3,"n_rows":1,"n_cols":14,"rows_kept":1,"cut":false,"hidden":false,"merged":[]}
["Buchung","Beleg","Gruppe","Rechnungsdatum","Zahlungsdatum","Firma","Verwendungszweck","Zahlung","nicht-real.Skonto","nicht ff. Ausgabe incl anteil. USt","ff. Brutto","anteil USt","Betragnetto","Antr"]

{"sheet":"Tab3","index":4,"n_rows":9,"n_cols":15,"rows_kept":9,"cut":false,"hidden":false,"merged":[[1,13,7,13],[6,0,6,1],[6,7,6,12]]}
["Betrieb:",null,null,{"$f":"\"   \"&'Tab1'!D10&\" in  \"&'Tab1'!D11","v":"    in  "},null,null,null,{"$f":"\"Unternehmer-Nr.:        \" &'Tab1'!D12","v":"Unternehmer-Nr.:        "}]
[null,null,null,null,null,null,null,null,null,null,null,null,null,"Ausz.-Antrag Nr."]
[]
[]
[]
[]
["Buchung",null,null,null,null,null,null,"Ausgaben in Euro"]
["Lfd. Nummer","Beleg-Nr.","KG","Rechnungs-datum","Zahlungs-datum","Firma","Gegenstand","Zahlung","nicht realisierte Skonti","nicht förderfähige Beträge","förderfähig Brutto","USt","zuwendungs-fähiger Betrag",null,"Bearbeitungsspalte der Kreisstelle"]
[1,2,3,4,5,6,7,8,9,10,11,12,13,14,15]

{"sheet":"Tab4","index":5,"n_rows":1,"n_cols":7,"rows_kept":1,"cut":false,"hidden":false,"merged":[]}
["lfd.Nr","Beleg","Datum","Art","Betrag","Art der Mittel","Ausz-Nr"]

{"sheet":"Tab5","index":6,"n_rows":9,"n_cols":8,"rows_kept":9,"cut":false,"hidden":false,"merged":[[5,0,7,0],[5,1,7,1],[5,6,7,6]]}
[]
[]
["Betrieb: ",null,{"$f":"\"   \"&'Tab1'!D10&\" in  \"&'Tab1'!D11","v":"    in  "}]
[{"$f":"\"Unternehmer-Nr.:        \" &'Tab1'!D12","v":"Unternehmer-Nr.:        "}]
[null,99]
[" Buchung Nr."," Beleg Nr.","Datum","Art","Betrag","Art ","Ausz.-Antrag Nr.","Bearbeitungsspalte"]
[null,null,"des",null,"in","der ",null," der "]
[null,null,"Zugangs","Code","Euro","Finanzierungsmittel",null,"Kreisstelle"]
[1,2,3,4,5,6,7,8]

{"sheet":"Tab6","index":7,"n_rows":77,"n_cols":10,"rows_kept":77,"cut":false,"hidden":false,"merged":[[0,2,0,3]]}
["Ausgaben",null,"alle Angaben in ",null,"Euro",null,null,"Bewilligter Kostenplan"]
["Num","Art","Ges.Betrag","nicht-ff.B.","ff.Betrag","USt","NettoBetrag","Betrag","nff u.USt","ffBetrag"]
[1,"Errichtung (GAK)",0,0,0,0,0,0,0,0]
[2,"Maschinen Anlagen (GAK)",0,0,0,0,0,0,0,0]
[3,"Allg. Aufwand (GAK)",0,0,0,0,0,0,0,0]
[4,"Organisation",0,0,0,0,0,0,0,0]
[5,"Startbeihilfen 1. Jahr",0,0,0,0,0,0,0,0]
[6,"Startbeihilfen 2. Jahr",0,0,0,0,0,0,0,0]
[7,"Startbeihilfen 3. Jahr",0,0,0,0,0,0,0,0]
[8,"Sachausgaben Einr/Ausst",0,0,0,0,0,0,0,0]
[9,"Sachausgaben Marketing,So.",0,0,0,0,0,0,0,0]
[10,"Bildungsmaßnahmen",0,0,0,0,0,0,0,0]
[11,"Sonstiges",0,0,0,0,0,0,0,0]
[null,"Summe",{"$f":"SUM(C3:C13)","v":0},{"$f":"SUM(D3:D13)","v":0},0,0,0,0,0,0]
[]
[]
[]
[]
["Erhaltene Finanzmittel kommen hier aus Abrechung Finanzmittel (Button 10)",null,null,null,"Betriebsdaten"]
["Num","Art der Einnahmen","Betrag",null,"BetriebsNr",0]
[1,"Zuschuss aus GAKG",0,null,"Name",0]
[2,"Zuschuss für Organisationsausgaben",0,null,"Vorname",0]
[3,"Zuschuss für  Ausstattung/Einrichtung",0,null,"Anschrift",0]
[4,"Zuschuss für Marketingmaßnahmen",0,null,"PLZ",0]
[5,"Startbeihilfe für 1. Durchführungs-Jahr",0,null,"Ort",0]
[6,"Startbeihilfe für 2. Durchführungs-Jahr",0,null,null,0]
[7,"Startbeihilfe für 3. Durchführungs-Jahr",0,null,null,0]
[8,"Zuschuss für Qualifizierungssmaßnahmen",0,null,null,0]
[9,"Barmittel (Guthaben)",0,null,{"$f":"F22&\" \"&F21&\" UnternNr.: \"&F20","v":"0 0 UnternNr.: 0"}]
[10,"USt-Erstattung",0,"Ergänzung:","Gesamt-VN",0]
[11,"Anderweitige Fördermittel",0,null,"Zwischen-VN",false]
[11,"Kontokorrent",0,null,"Belege bei:"]
[12,"Fremdkapital (Kredite)",0,null,"Datum des VN:","00:00:00"]
[13,"Leistungen Dritter",0,null,"Maßn. abgeschlossen",0]
[null,"SUMME",{"$f":"SUM(C21:C34)","v":0},null,"Abgeschlossen am","00:00:00"]
[null,null,null,null,"Vorlage VN","00:00:00"]
[]
[null,null,null,1,{"$f":"VLOOKUP(D38,_Num2,2,TRUE)","v":"Errichtung (GAK)"}]
[null,null,null,"Daten aus ZuBeFinanzierung Geplante Finanzmittel aus Erfassung ZuwendB (Button3)"]
[null,"Kreisstellen",null,"Zuschuss aus GAKG",0,"Daten aus ZuwB-2. Seite"]
[1,"Aachen",null,"Zuschuss für Organisationsausgaben",0,"Datum ZB","00:00:00"]
[2,"Düren",null,"Zuschuss für  Ausstattung/Einrichtung",0,"AZ des ZB",0]
[3,"Erftkreis",null,"Zuschuss für Marketingmaßnahmen",0,"Dfzeit von","00:00:00"]
[4,"Euskirchen",null,"Startbeihilfe für 1. Durchführungs-Jahr",0,"Dfzeit bis","00:00:00"]
[5,"Heinsberg",null,"Startbeihilfe für 2. Durchführungs-Jahr",0,"BewZeit von","00:00:00"]
[6,"Kleve",null,"Startbeihilfe für 3. Durchführungs-Jahr",0,"BewZeit bis","00:00:00"]
[7,"Mettmann",null,"Zuschuss für Qualifizierungssmaßnahmen",0]
[8,"Neuss",null,"Barmittel (Guthaben)",0,"VorzeitB"]
[9,"Oberberg. Kreis",null,"USt-Erstattung",0]
[10,"Rhein.-Berg. Kreis",null,"Anderweitige Fördermittel",0]
[11,"Rhein-Sieg-Kreis",null,"Kontokorrent",0]
[12,"Viersen",null,"Fremdkapital (Kredite)",0]
[13,"Wesel",null,"Leistungen Dritter",0]
["IST:","Siegen-Wittgenstein",26,"Summe Finanzmittel",{"$f":"SUM(E40:E53)","v":0}]
[]
[]
["Auszahlungsantrag",null,"bewilligt","gezahlt","beantragt","Diff"]
[null,"ZuschussGAK",0,0,0,0]
[null,"Z OrganisationKonzept",0,0,0,0]
[null,"Z.Ausstattung/Einrichtung",0,0,0,0]
[null,"Z Marketing Sonstiges",0,36526,0,0]
[null,"Startbeihilfe 1. Jahr",0,0,0,0]
[null,"Startbeihilfe 2. Jahr",0,0,0,0]
[null,"Startbeihilfe 3. Jahr",0,0,0,0]
[null,"Z Qualifizierung",0,0,0,0]
[null,"Summe",{"$f":"SUM(C58:C65)","v":0},{"$f":"SUM(D58:D65)","v":36526},{"$f":"SUM(E58:E65)","v":0},{"$f":"SUM(F58:F65)","v":0}]
[]
["Vorher beantragt",null,"bewilligt","gezahlt","beantragt","Diff"]
[null,"ZuschussGAK",{"$f":"C58","v":0},0,0]
[null,"Z OrganisationKonzept",{"$f":"C59","v":0},0,0]
[null,"Z.Ausstattung/Einrichtung",0,0,0]
[null,"Z Marketing Sonstiges",0,0,0]
[null,"Startbeihilfe 1. Jahr",0,0,0]
[null,"Startbeihilfe 2. Jahr",0,0,0]
[null,"Startbeihilfe 3. Jahr",0,0,0]
[null,"Z Qualifizierung",0,0,0]
[null,null,{"$f":"SUM(C69:C76)","v":0},{"$f":"SUM(D69:D76)","v":0},{"$f":"SUM(E69:E76)","v":0},{"$f":"SUM(F69:F76)","v":0}]

{"sheet":"VNS1","index":8,"n_rows":50,"n_cols":9,"rows_kept":50,"cut":false,"hidden":false,"merged":[[29,4,29,6],[21,1,21,7],[6,1,6,8],[16,1,16,4],[16,5,16,7],[20,1,20,7],[30,2,30,3],[2,1,2,6],[33,1,35,1],[33,2,35,2],[33,3,35,3],[18,1,18,3],[32,5,32,6],[18,5,18,8],[19,1,19,8],[4,1,4,8],[30,4,30,6],[24,1,24,4],[23,1,23,4],[23,6,23,7],[31,1,31,4],[29,1,29,2],[31,6,31,7],[39,1,47,9],[33,4,35,4],[33,7,35,7],[33,8,35,8],[38,0,38,7],[37,0,37,8]]}
[]
[]
[null,"Förderung nach den Richtlinien über die Gewährung \nvon Zuwendungen für die Diversifizierung der Tätigkeiten \nim landwirtschaftlichen und landwirtschaftsnahen Bereich"]
[]
[]
[]
[]
[null,null,null,null,null,null,null,"Eingangsstempel"]
[null,"An den"]
[null,"Direktor der Landwirtschaftskammer NRW"]
[null,"als Landesbeauftragter"]
[null,"über den Geschäftsführer der Kreisstelle"]
[null,{"$f":"'Tab1'!E40","v":"VE Rheinkreise"},null,{"$f":"VLOOKUP(B13,Liste!B2:C4,2,1)","v":"Gartenstr. 11, 50765 Köln"}]
[]
["1. Zuwendungsempfänger"]
[null,"Name",null,null,null,"Vorname",null,null,"Unternehmer-Nr."]
[null,{"$f":"'Tab1'!D10","v":0},null,null,null,{"$f":"IF('Tab1'!F10=\"\",\"\",'Tab1'!F10)","v":""},null,null,{"$f":"'Tab1'!D12","v":""}]
[null,"Straße",null,null,"PLZ ","Ort"]
[null,{"$f":"'Tab1'!D14","v":0},null,null,{"$f":"'Tab1'!F11","v":0},{"$f":"'Tab1'!D11","v":0}]
[]
[null,"Bevollmächtigter"]
[null,{"$f":"AusAn!C6","v":0}]
[null,"Bei diesem Verwendungsnachweis handelt es sich um den "]
[null,{"$f":"IF('Tab6'!F30,\"Schlussverwendungsnachweis\",\"Zwischenverwendungsnachweis\")","v":"Zwischenverwendungsnachweis"},null,null,null,true,{"$f":"\"Vorlagetermin Schluß-VN: \"","v":"Vorlagetermin Schluß-VN: "},null,{"$f":"'Tab6'!F36","v":"00:00:00"}]
[null,null,null,null,null,false]
[]
[]
[]
[]
[null,"Zuwendungsbescheid vom  ",null,{"$f":"'Tab6'!G41","v":"00:00:00"},"Durchführungszeitraum von.. bis..",null,null,{"$f":"'Tab6'!G43","v":"00:00:00"},{"$f":"'Tab6'!G44","v":"00:00:00"}]
[null,"Aktenzeichen  ",{"$f":"'Tab6'!G42","v":0},null,"Bewilligungszeitraum von.. bis..",null,null,{"$f":"'Tab6'!G45","v":"00:00:00"},{"$f":"'Tab6'!G46","v":"00:00:00"}]
[null,"Die Zuwendung wurde in folgender Höhe bewilligt:",null,null,null,null,"vorzeitiger Beginn zugelassen",null,{"$f":"IF(ISBLANK('Tab6'!G48),\"nein\",'Tab6'!G48)","v":"nein"}]
[null,"Zuschuss GAK","Zuschuss Organisation, Konzeption","Zuschuss Ausstattung, Einrichtung","Zuschuss Marketing, Sonst. Kosten","Startbeihilfen",null,"Qualifizie-rungsmaß-nahmen","Summe"]
[null,{"$f":"'VNS2'!E5","v":0},{"$f":"'VNS2'!E6","v":0},{"$f":"'VNS2'!E7","v":0},{"$f":"'VNS2'!E8","v":0},"1.J.",{"$f":"'VNS2'!E9","v":0},{"$f":"'VNS2'!E12","v":0},{"$f":"SUM(B34:E34,G34:G36,H34)","v":0}]
[null,null,null,null,null,"2.J.",{"$f":"'VNS2'!E10","v":0}]
[null,null,null,null,null,"3.J.",{"$f":"'VNS2'!E11","v":0}]
["2. Sachbericht"]
["(Darstellung der durchgeführten Maßnahme, u.a. Beginn, bisheriger Verlauf, Abschluss, Erfüllung des Plans, Abweichungen, Verwendung der Zuwendung - auch anderer Förderprogramme, Finanzierung von Mehrausgaben, Erfüllung Auflagen, Erfolg/Erfüllung Zuwendungszweck, Liefertermin Maschinen/Geräte/Anlagen, Termin Bauabnahme u.s.w., \nwenn erforderlich, gesondertes Blatt beifügen.)"]
[]
[null,"Hier Text einfügen"]
[]
[]
[]
[]
[]
[]
[]
[]
[]
[null,"Ist die Maßnahme ist abgeschlossen ?",null,null,{"$f":"IF('Tab6'!F34,\"JA\",\"NEIN\")","v":"NEIN"},null,"seit: ",{"$f":"IF(E50=\"JA\",'Tab6'!F35,\" \")","v":" "}]

{"sheet":"VNS2","index":9,"n_rows":52,"n_cols":7,"rows_kept":52,"cut":false,"hidden":false,"merged":[[38,2,38,3],[45,4,45,6]]}
[]
[null,"3. Zahlenmäßiger Nachweis der Finanzierungsmittel"]
[null,0,"alle Angaben in Euro"]
[null,null," Einnahmen",null,"laut Zuwendungsbescheid",null,"laut Abrechnung"]
[null,null,"1.","Zuschuss aus GAK-Förderung",{"$f":"'Tab6'!E40","v":0},null,{"$f":"'Tab6'!C21","v":0}]
[null,null,"2.","Zuschuss für Organisation, Konzeption",{"$f":"'Tab6'!E41","v":0},null,{"$f":"'Tab6'!C22","v":0}]
[null,null,"3.","Zuschuss für  Ausstattung, Einrichtung",{"$f":"'Tab6'!E42","v":0},null,{"$f":"'Tab6'!C23","v":0}]
[null,null,"4.","Zuschuss für Marketing und Sonstiges",{"$f":"'Tab6'!E43","v":0},null,{"$f":"'Tab6'!C24","v":0}]
[null,null,"5.","Zuschuss für Startbeihilfe 1. Jahr",{"$f":"'Tab6'!E44","v":0},null,{"$f":"'Tab6'!C25","v":0}]
[null,null,"6.","Zuschuss für Startbeihilfe 2. Jahr",{"$f":"'Tab6'!E45","v":0},null,{"$f":"'Tab6'!C26","v":0}]
[null,null,"7.","Zuschuss für Startbeihilfe 3. Jahr",{"$f":"'Tab6'!E46","v":0},null,{"$f":"'Tab6'!C27","v":0}]
[null,null,"8.","Zuschuss zu Qualifizierungsmaßnahmen",{"$f":"'Tab6'!E47","v":0},null,{"$f":"'Tab6'!C28","v":0}]
[null,null,null,"Zuschüsse zusammen",{"$f":"SUM(E5:E12)","v":0},null,{"$f":"SUM(G5:G12)","v":0}]
[null,null,"9.","Bare Eigenmittel (Guthaben)",{"$f":"'Tab6'!E48","v":0},null,{"$f":"'Tab6'!C29","v":0}]
[null,null,"10.","USt-Erstattung",{"$f":"'Tab6'!E49","v":0},null,{"$f":"'Tab6'!C30","v":0}]
[null,null,"11.","Anderweitige Fördermittel",{"$f":"'Tab6'!E50","v":0},null,{"$f":"'Tab6'!C31","v":0}]
[null,null,"12.","Kontokorrent",{"$f":"'Tab6'!E51","v":0},null,{"$f":"'Tab6'!C32","v":0}]
[null,null,"13.","Fremdkapital (Kredite)",{"$f":"'Tab6'!E52","v":0},null,{"$f":"'Tab6'!C33","v":0}]
[null,null,"14.","Leistungen Dritter",{"$f":"'Tab6'!E53","v":0},null,{"$f":"'Tab6'!C34","v":0}]
[null,null,null,"  Summe ",{"$f":"SUM(E13:E19)","v":0},null,{"$f":"SUM(G13:G19)","v":0}]
[]
[null,"4. Bestätigungen des/der Antragsteller/in"]
[null,null,"Es wird bestätigt, dass "]
[null,null,"- die allgemeinen und besonderen Nebenbestimmungen des Zuwendungsbescheides beachtet wurden"]
[null,null,"- die Ausgaben notwendig waren, wirtschaftlich und sparsam verfahren wurde und die Angaben "]
[null,null,"   im Verwendungsnachweis mit den Belegen übereinstimmen."]
[null,null,"- die vorgelegten Online-Belege einmalig und ausschließlich für diese Maßnahme eingereicht wurden."]
[null,null,"- die Inventarisierung der mit der Zuwendung beschafften Gegenstände vorgenommen wurde."]
[]
[null,null,"Die Belege werden in einer Belegliste zusammengefasst dargestellt."]
[]
[null,null,"Die Belege werden aufbewahrt bei:",null,{"$f":"'Tab6'!F32","v":0}]
[]
[]
[]
[]
[]
[null,null,{"$f":"'Tab6'!F25 &\", \"","v":"0, "}]
[null,null,{"$f":"'Tab6'!F33","v":"00:00:00"}]
[null,null,"Ort, Datum",null,"Unterschrift/en"]
[]
[]
[]
[]
[null,"5. Bestätigung des Betreuers/Beraters"]
[null,null,"aktuelle Betreuung durch: ",null,"ohne Betreuer"]
[null,null,"Das Vorhaben ist unter meiner Mitwirkung durchgeführt worden. Ich bestätige den vorstehenden "]
[null,null,"Verwendungsnachweis und die Erklärungen des Zuwendungsempfängers."]
[]
[]
[]
[null,null,"Ort, Datum",null,"Unterschrift"]

{"sheet":"VNS3","index":10,"n_rows":53,"n_cols":8,"rows_kept":53,"cut":false,"hidden":false,"merged":[[21,2,21,11]]}
[]
[]
[null,"6. Prüfungsvermerk des Geschäftsführers der Kreisstelle"]
[]
[null,"Der Verwendungsnachweis wurde geprüft"]
[]
[null,null," nach Aktenlage"]
[]
[null,null," nach Aktenlage und örtlicher Besichtigung"]
[null,"Ergebnis"]
[null,null," Der Verwendungsnachweis entspricht den im Zuwendungsbescheid einschl. der in den Neben-"]
[null,null," bestimmungen festgelegten Anforderungen. Die Zuwendung ist zweckentsprechend verwendet "]
[null,null," worden. "]
[]
[null,null," Der Verwendungsnachweis ist vollständig (einschl. Sachbericht, Originalrechnungen, "]
[null,null," Zahlungsbeweisen und Auftragsunterlagen z.B. Belege zur Auftragsvergabe wie Auftrags-"]
[null,null," bestätigung oder Vertrag, Arbeitsverträge mit Tätigkeitsbeschreibung, Statistisches "]
[null,null," Erhebungsblatt Bruttoarbeitsplätze, Seminarprogramm und Teilnehmerbescheinigung "]
[null,null," bei Qualifizierungsmaßnahme, Angaben zum Beihilfewert anderer Förderungen, Sozial-"]
[null,null," versicherungsnachweis, Angebotsvergleichsblatt, Vergleichsangebote, Kreditverträge, "]
[null,null," bei genehmigungspflichtigen Bauvorhaben Bericht zur Bauzustandsbesichtigung, ersatz-"]
[null,null," weise die ‚Anzeige der Baufertigstellung’, Inventarverzeichnis, Gewerbean-"]
[null,null," meldung bei Kleinstunternehmen)."]
[]
[null,null," Die Prüfung ergab keine Beanstandungen. Die Angaben des Zuwendungsempfängers"]
[null,null,"  werden bestätigt. Entgegenstehende Tatsachen sind nicht bekannt."]
[null,null," Der Verwendungsnachweis wird an die Bewilligungsstelle übersandt."]
[]
[null,null," Die Prüfung ergab folgende Beanstandungen: (Korrekturen zu einzelnen Belegen sind in der "]
[null,null," Bearbeitungsspalte ausgewiesen)."]
[]
[]
[]
[]
[null,null," Der Auszahlungsbetrag muss aufgrund der Beanstandungen gekürzt werden."]
[]
[]
[null,null,"Ort, Datum",null,null,null,"Name und Unterschrift des Geschäftsführers der Kreisstelle"]
[null,null,null,null,null,null,"der Landwirtschaftskammer oder seines Beauftragten "]
[]
[]
[null,"7. Ergebnis der Prüfung durch die Bewilligungsstelle"]
[]
[null,"Der ",null,{"$f":"IF('Tab6'!F30=TRUE,\"Schlussverwendungsnachweis\",\"Zwischenverwendungsnachweis\")","v":"Zwischenverwendungsnachweis"},null,null,null,"wurde anhand der vorliegenden Unterlagen"]
[null,"geprüft."]
[]
[null,"Es ergaben sich ",null,null,null,"    keine Beanstandungen,"]
[]
[null,null,null,null,null,"    die nachstehenden Beanstandungen:"]
[]
[]
[]
[null,null,"Ort, Datum",null,null,null,"Unterschrift des Bearbeiters"]

{"sheet":"VNS4","index":11,"n_rows":27,"n_cols":11,"rows_kept":27,"cut":false,"hidden":false,"merged":[[7,3,7,5],[7,6,7,8],[5,4,6,4]]}
[]
[null,"Kosten der Diversifizierungsmaßnahme",null,null,null,null,"Kosten bis Durchf.-Jahr",null,{"$f":"AusAn!H17","v":1},null,"Anlage A"]
[null,"2. Ausgabengliederung",null,null,"alle Angaben in ","Euro",null,null,null,null,"Prüfung Kreisstelle"]
[null,null,null,"2.1  laut Konzept und Antrag ",null,null,"2.2   Tatsächlich entstandene Ausgaben",null,null,null," "]
[null,"Ausgabenbereich",null,"Investitionsbetrag (Brutto einschl. Eigenleistung)","USt und nicht förderfähige \nKosten","förderfähiger\n Betrag","Investitionsbetrag (Brutto einschl. Eigenleistung)","USt und nicht förderfähige \nKosten","förderfähiger\nBetrag",null,"geprüft und anerkannt"]
[]
[]
[null,null,null,"Erfassungsdialog",null,null,"aus Abrechnung"]
[null,"Errichtung (GAK)",1,{"$f":"'Tab6'!H3","v":0},{"$f":"'Tab6'!I3","v":0},{"$f":"'Tab6'!J3","v":0},{"$f":"'Tab6'!C3","v":0},{"$f":"'Tab6'!D3+'Tab6'!F3","v":0},{"$f":"'Tab6'!G3","v":0}]
[null,"Maschinen, Anlagen (GAK)",2,{"$f":"'Tab6'!H4","v":0},{"$f":"'Tab6'!I4","v":0},{"$f":"'Tab6'!J4","v":0},{"$f":"'Tab6'!C4","v":0},{"$f":"'Tab6'!D4+'Tab6'!F4","v":0},{"$f":"'Tab6'!G4","v":0}]
[null,"Allg. Aufwand (GAK)",3,{"$f":"'Tab6'!H5","v":0},{"$f":"'Tab6'!I5","v":0},{"$f":"'Tab6'!J5","v":0},{"$f":"'Tab6'!C5","v":0},{"$f":"'Tab6'!D5+'Tab6'!F5","v":0},{"$f":"'Tab6'!G5","v":0}]
[null,"Organisation",4,{"$f":"'Tab6'!H6","v":0},{"$f":"'Tab6'!I6","v":0},{"$f":"'Tab6'!J6","v":0},{"$f":"'Tab6'!C6","v":0},{"$f":"'Tab6'!D6+'Tab6'!F6","v":0},{"$f":"'Tab6'!G6","v":0}]
[null,"1. J. Löhne, Sozialabg.",5,{"$f":"'Tab6'!H7","v":0},{"$f":"'Tab6'!I7","v":0},{"$f":"'Tab6'!J7","v":0},{"$f":"'Tab6'!C7","v":0},{"$f":"'Tab6'!D7+'Tab6'!F7","v":0},{"$f":"'Tab6'!G7","v":0}]
[null,"2. J. Löhne, Sozialabg.",6,{"$f":"'Tab6'!H8","v":0},{"$f":"'Tab6'!I8","v":0},{"$f":"'Tab6'!J8","v":0},{"$f":"'Tab6'!C8","v":0},{"$f":"'Tab6'!D8+'Tab6'!F8","v":0},{"$f":"'Tab6'!G8","v":0}]
[null,"3. J. Löhne, Sozialabg.",7,{"$f":"'Tab6'!H9","v":0},{"$f":"'Tab6'!I9","v":0},{"$f":"'Tab6'!J9","v":0},{"$f":"'Tab6'!C9","v":0},{"$f":"'Tab6'!D9+'Tab6'!F9","v":0},{"$f":"'Tab6'!G9","v":0}]
[null,"Einrichtg/Ausst - Sachausgaben ",8,{"$f":"'Tab6'!H10","v":0},{"$f":"'Tab6'!I10","v":0},{"$f":"'Tab6'!J10","v":0},{"$f":"'Tab6'!C10","v":0},{"$f":"'Tab6'!D10+'Tab6'!F10","v":0},{"$f":"'Tab6'!G10","v":0}]
[null,"Marketing, Sost. Sachausgaben",9,{"$f":"'Tab6'!H11","v":0},{"$f":"'Tab6'!I11","v":0},{"$f":"'Tab6'!J11","v":0},{"$f":"'Tab6'!C11","v":0},{"$f":"'Tab6'!D11+'Tab6'!F11","v":0},{"$f":"'Tab6'!G11","v":0}]
[null,"Qualifizierungsmaßnahmen",10,{"$f":"'Tab6'!H12","v":0},{"$f":"'Tab6'!I12","v":0},{"$f":"'Tab6'!J12","v":0},{"$f":"'Tab6'!C12","v":0},{"$f":"'Tab6'!D12+'Tab6'!F12","v":0},{"$f":"'Tab6'!G12","v":0}]
[null,"Sonstiges",11,{"$f":"'Tab6'!H13","v":0},{"$f":"'Tab6'!I13","v":0},{"$f":"'Tab6'!J13","v":0},{"$f":"'Tab6'!C13","v":0},{"$f":"'Tab6'!D13+'Tab6'!F13","v":0},{"$f":"'Tab6'!G13","v":0}]
[]
[null,"Summe",null,{"$f":"SUM(D3:D19)","v":0},0,0,0,0,0]
[]
[null,"Prüfung Allg. Aufwand (max 12 %)",null,{"$f":"F9+F10","v":0},null,{"$f":"IF(F24<0,\"um …€ zu hoch\",\"o.k.\")","v":"o.k."},{"$f":"I9+I10","v":0},null,{"$f":"IF(I24<0,\"um …€ zu hoch\",\"o.k.\")","v":"o.k."}]
[null,"Überschreitung",null,null,null,{"$f":"IF(D25>F11,0,D25-F11)","v":0},null,null,{"$f":"IF(G25>I11,0,G25-I11)","v":0}]
[null,"zulässige Höhe Allg. Aufwand",null,{"$f":"ROUNDDOWN((D23*12%),2)","v":0},null,null,{"$f":"ROUNDDOWN((G23*12 %),2)","v":0}]
[]
[null,"Angaben zu 2.1 aus Button2"]

{"sheet":"AusAn","index":12,"n_rows":71,"n_cols":16,"rows_kept":71,"cut":false,"hidden":false,"merged":[[10,7,10,8],[16,5,16,6],[17,3,17,5],[13,2,13,4],[52,1,53,8],[37,1,38,8],[59,5,59,8],[70,5,70,8],[45,1,47,8],[48,1,51,8],[23,1,26,4],[23,5,24,7],[54,1,54,8]]}
[]
[null,"Antragsteller/in; Absender:"]
[null,null,{"$f":"'Tab1'!F10 &\" \"&'Tab1'!D10","v":" "}]
[null,null,{"$f":"'Tab1'!D14","v":0}]
[null,null,{"$f":"'Tab1'!F11 &\"  \"&'Tab1'!D11","v":"  "}]
[null,"z.H.",0]
[]
[null,"An den Direktor der Landwirtschaftskammer NRW"]
[null,"als Landesbeauftragter"]
[null,"EU-Zahlstelle, Förderung"]
[null,null,null,null,null,null,null,"Eingangsstempel"]
[]
[]
[null,"über",{"$f":"'Tab1'!E40","v":"VE Rheinkreise"},null,null,{"$f":"VLOOKUP(C14,Liste!B2:C4,2)","v":"Gartenstr. 11, 50765 Köln"}]
[]
[null,"Gewährung von Zuwendungen nach dem Programm zur Förderung der Diversifizierung (DIV)"]
[null,"Antrag auf Auszahlung der Zuschüsse",null,null,null,"- Auszahlung Nr.",null,{"$f":"'Tab1'!C41","v":1}]
[null,"Aktenzeichen: ",null,{"$f":"'Tab6'!G42","v":0}]
[null,"Grundlage für diesen Antrag ist der beigefügte",null,null,null,{"$f":"IF('Tab6'!F30,\"Schlussverwendungsnachweis\",\"Zwischenverwendungsnachweis\")","v":"Zwischenverwendungsnachweis"}]
[null,null,null,null,null,null,"2000-01-01"]
[null,"Mit Bezug auf die im beigefügten Verwendungsnachweis angegebenen Ausgaben beantrage ich"]
[null,"hiermit folgende Auszahlung:"]
[]
[null,"Zuschuss für",null,null,null,"alle Angaben in Euro"]
[null,null,null,null,null,null,null,null,"Feststellung der"]
[null,null,null,null,null,null,"bereits","beantragte","Kreisstelle"]
[null,null,null,null,null,"bewilligt:","ausgezahlt:","Auszahlung"]
[null,"~ Investitionen nach GAKG",null,null,null,{"$f":"'Tab6'!E40","v":0},{"$f":"'Tab6'!C21","v":0},0,""]
[null,"~ Organisationausgaben",null,null,null,{"$f":"'Tab6'!E41","v":0},{"$f":"'Tab6'!C22","v":0},0,""]
[null,"~ Einrichtung und Ausstattung",null,null,null,{"$f":"'Tab6'!E42","v":0},{"$f":"'Tab6'!C23","v":0},0,""]
[null,"~ Marketingmaßnahmen",null,null,null,{"$f":"'Tab6'!E43","v":0},{"$f":"'Tab6'!C24","v":0},0,""]
[null,"~ Startbeihilfen für 1. Jahr",null,null,null,{"$f":"'Tab6'!E44","v":0},{"$f":"'Tab6'!C25","v":0},0,""]
[null,"~ Startbeihilfen für 2. Jahr",null,null,null,{"$f":"'Tab6'!E45","v":0},{"$f":"'Tab6'!C26","v":0},0,""]
[null,"~ Startbeihilfen für 3. Jahr",null,null,null,{"$f":"'Tab6'!E46","v":0},{"$f":"'Tab6'!C27","v":0},0,"",null,null,"bewilligt","ausgezahlt","beantragt","ausgezahlt + beantragt","Anteil "]
[null,"~ Qualifizierungsmaßnahmen",null,null,null,{"$f":"'Tab6'!E47","v":0},{"$f":"'Tab6'!C28","v":0},0,"",null,"GAK",{"$f":"F28","v":0},{"$f":"G28","v":0},0,{"$f":"M35+N35","v":0},{"$f":"ROUNDUP((O35/L35),4)","v":{"$error":"#DIV/0!"}}]
[null,"Summe",null,null,null,{"$f":"SUM(F28:F35)","v":0},{"$f":"SUM(G28:G35)","v":0},{"$f":"SUM(H28:H35)","v":0},null,null,"NGAK",{"$f":"F36-F28","v":0},{"$f":"G36-G28","v":0},{"$f":"H36-H28","v":0},{"$f":"M36+N36","v":0},{"$f":"ROUNDUP((O36/L36),4)","v":{"$error":"#DIV/0!"}}]
[null,"Insgesamt sind bisher inkl. heute vom bewilligten Betrag beantragt (GAK / ohne GAK):",null,null,null,null,null,{"$f":"IF(F28>0,(H28+G28)/F28,\"-\")","v":"-"},{"$f":"IF(F36>F28,P36,\"-\")","v":"-"}]
[null,"Der beantragte Auszahlungsbetrag soll auf die für meine Unternehmernummer bei der Landwirtschaftskammer NRW registrierte Bankverbindung gezahlt werden."]
[]
[null,null,null,"Identifikation des Antrages:",null,null,"Grundantrag-Jahr: ",{"$f":"'Tab1'!C43","v":1}]
[null,null,null,null,null,null,"Grundantrag-Nr.: ",{"$f":"'Tab1'!C42","v":1}]
[null,null,null,null,null,null,"Unternehmer-Nr.: ",{"$f":"'Tab1'!D12","v":""}]
[null,null,null,null,null,null,"Durchführungsjahr: ",{"$f":"'Tab1'!C40","v":1}]
[]
[]
[null,"Ich/Wir bestätige/n, dass die Angaben im Antrag und im Investitionskonzept noch zutreffen und damit die Voraussetzungen für die Gewährung der Förderung gemäß den geltenden Richtlinien weiterhin erfüllt sind. "]
[]
[]
[null,"Ich/Wir versicher(e)/n, dass gegen mich/uns in den letzten fünf Jahren weder eine Geldbuße von wenigstens 2.500 Euro nach § 404 Abs. 2 Nr. 3 des Dritten Buches Sozialgesetzbuch rechtskräftig verhängt, noch dass ich/wir rechtskräftig nach den §§ 10, 10a oder 11 des Schwarzarbeitsbekämpfungsgesetzes zu einer Freiheitsstrafe von mehr als drei Monaten oder einer Geldstrafe von mehr als 90 Tagessätzen verurteilt wurde/n."]
[]
[]
[]
[null,"Im Verwendungsnachweis sind ausschließlich solche Ausgaben aufgeführt, die der Durchführung der in den Antragsunterlagen beschriebenen Maßnahmen zuzurechnen sind."]
[]
[null,"Die mit dem Zuwendungsbescheid erlassenen Bestimmungen für die Auszahlung sind erfüllt."]
[]
[]
[]
[null,null,{"$f":"'Tab6'!F25 &\", \"","v":"0, "},{"$f":"'Tab6'!F33","v":"00:00:00"}]
[null,null,"Ort, Datum",null,null,"  Unterschrift des/r Antragstellers/in"]
[]
[null,null,"Anlagen:"]
[]
[]
[null,null,"nur von der Kreisstelle auszufüllen"]
[null,null,"Der Auszahlungsantrag wurde geprüft und zur Erfassung und Weiterverarbeitung freigegeben. Die festgestellten Beträge"]
[null,null,"werden zur Auszahlung freigegeben."]
[]
[]
[]
[null,null,"Ort, Datum",null,null,"Unterschrift der Bearbeiterin/ des Bearbeiters"]

{"sheet":"Aufteilung","index":13,"n_rows":39,"n_cols":16,"rows_kept":39,"cut":false,"hidden":true,"merged":[]}
[]
[null,null,{"$f":"VLOOKUP(C4,'Tab1'!$O$2:$P$18,2,0)","v":"GAK: Allg. Aufwand: Ingenieurl."},{"$f":"VLOOKUP(D4,'Tab1'!$O$2:$P$18,2,0)","v":"GAK: Allg. Aufw: Baunebenkosten"},{"$f":"VLOOKUP(E4,'Tab1'!$O$2:$P$18,2,0)","v":"GAK: Allg. Aufwand: Architekt"},{"$f":"VLOOKUP(F4,'Tab1'!$O$2:$P$18,2,0)","v":{"$error":"#N/A"}},{"$f":"VLOOKUP(G4,'Tab1'!$O$2:$P$18,2,0)","v":{"$error":"#N/A"}},{"$f":"VLOOKUP(H4,'Tab1'!$O$2:$P$18,2,0)","v":{"$error":"#N/A"}},{"$f":"VLOOKUP(I4,'Tab1'!$O$2:$P$18,2,0)","v":{"$error":"#N/A"}},{"$f":"VLOOKUP(J4,'Tab1'!$O$2:$P$18,2,0)","v":{"$error":"#N/A"}},{"$f":"VLOOKUP(K4,'Tab1'!$O$2:$P$18,2,0)","v":{"$error":"#N/A"}},{"$f":"VLOOKUP(L4,'Tab1'!$O$2:$P$18,2,0)","v":{"$error":"#N/A"}},{"$f":"VLOOKUP(M4,'Tab1'!$O$2:$P$18,2,0)","v":{"$error":"#N/A"}},{"$f":"VLOOKUP(N4,'Tab1'!$O$2:$P$18,2,0)","v":{"$error":"#N/A"}},null,"Total"]
[null,null,"Gruppe"]
[null,"Antr",32,35,31,"Gesamtergebnis"]
[null,1]
[null,"Gesamtergebnis"]
[]
[]
[]
[]
[]
[]
[]
[]
[null,"Aufteilung der nachgewiesenen Kosten"]
[]
[null,null,"Antr"]
[null,"Gruppe",1,"Gesamtergebnis"]
[null,32]
[null,35]
[null,31]
[null,"Gesamtergebnis"]
[]
[]
[]
[]
[]
[]
[]
[]
[]
[]
[]
[null,"Antr","(Alle)"]
[]
[]
[null,"Gruppe"]
[null,"(Leer)"]
[null,"Gesamtergebnis"]

{"sheet":"Betreuer","index":14,"n_rows":45,"n_cols":9,"rows_kept":45,"cut":false,"hidden":true,"merged":[]}
["AF08_BETREUER_NR","AF08_NAME","AF08_VORNAME","AF08_STRASSE","AF08_PLZ","AF08_ORT","AF08_TELEFON","AF08_KRST_NR","AF08_EMAIL"]
[0,"ohne Betreuer","","",null,"","",499,""]
[60,"BSt. Köln - Frau B. Biermann","Birgit","Gartenstr. 11 a",50765,"Köln-Auweiler","0221/5340-108",402,"birgit.biermann@lwk.nrw.de"]
[62,"BSt.Steinfurt-Fr.Jürgensmeier","Susanne","Hembergener Str. 10",48369,"Saerbeck","02574/9277-26",618,"susanne.juergensmeier-lotz@lwk.nrw.de"]
[61,"BSt. Paderborn - Frau W. Kuck","Walburga","Bleichstr. 41",33102,"Paderborn","05251/1354-55",613,"walburga.kuck@lwk.nrw.de"]
[65,"agrar man GmbH-Frau Schonvogel","","Wiefelsteder Straße 171",26316,"Varel-Bramloge","04456/899870",400,"info@agrarman.de"]
[64,"BSt. Coesfeld - Frau Wettels","Hanna","Johann-Walling-Str. 45",45325,"Borken","02861-922 752",601,"hanna.wettels@lwk.nrw.de"]
[63,"BSt. Soest - Frau Thörner","Karin","Ostinghausen (Haus Düsse)",59505,"Bad Sassendorf","02945-989 536",617,"karin.thoerner@lwk.nrw.de"]
[50,"LUB GmbH - Frau Bergmann","Margret ","Waldenburger Straße 6 ",48231,"Warendorf ","0 25 81 63 79-36",619,"Margret.Bergmann@lwk.nrw.de"]
[37,"LUB GmbH - Frau Biermann","Dorothee","Dünnefeldweg 13",59872,"Meschede","0291/991562",606,"Dorothee.Biermann@lwk.nrw.de"]
[35,"Telle","Martin","Timbergstrasse 51",58513,"Lüdenscheid","02351 14215",499,""]
[34,"Weifels","Klaus","Im Rottfeld 25",41462,"Neuss","02131/541296",499,"heinz.anette.weifels@t-online.de"]
[33,"Mews","Klaus","Gildehauser Weg 239",48529,"Nordhorn","05921/13120",499,"klaus.mews@t-online.de"]
[32,"Massier","Hubert","Asternweg 6",41363,"Jüchen","02182/5538",499,"h.massier@t-online.de"]
[31,"LUM - Herr Erkelenz","Lutz","Grünscheid 25",42799,"Leichlingen","02175 /166206",499,""]
[30,"LBB Brandenburg","Ingenieurbüro Hottelmann und C","Dorfstraße 18",14476,"Satzkorn","",499,""]
[29,"LUB GmbH - Herrn Schütte","Stefan","Johann-Walling-Str. 45",46325,"Borken","02861 9227-48",601,"stefan.schuette@lwk.nrw.de"]
[28,"LUB GmbH - Herrn Ostermann ","Gerhard","Nevinghoff 40",48147,"Münster","0251/2376-406",611,"Gerhard.Ostermann@lwk.nrw.de"]
[27,"LUB GmbH - Herrn Siegenbrink","Georg","Bohlenweg 3",33034,"Brakel","05272 3701-223",607,"Georg.Siegenbrink@lwk.nrw.de"]
[26,"LUB GmbH - Frau Beaupoil","Maria","Elsenpaß 5",47533,"Kleve","02821/996208",415,"Maria.Beaupoil@lwk.nrw.de"]
[25,"LUB GmbH- Herr Müller-Rechmann","Thomas","Waldenburger Straße 6",48231,"Warendorf","02581/6379-32",619,""]
[24,"LUB GmbH - Herrn Nagelschmitz","Andreas","Gartenstraße 11 a",50765,"Köln-Auweiler","0221/5340-118",402,""]
[23,"LUB GmbH - Frau Husmann","Helga","Borkener Straße 25",48653,"Coesfeld","02541/910-241",602,""]
[22,"LUB GmbH - Herrn Lauschner","Olaf","Platanenallee 56",59425,"Unna","02303/9616135",615,""]
[21,"LUB GmbH - Frau Chudalla","Frietrud","Gartenstraße 11 a",50765,"Köln-Auweiler","0211/5340111",402,""]
[20,"LUB GmbH - Herr Boerman","Jürgen","Johann-Walling-Strasse 45",46325,"Borken","02861/922739",601,""]
[19,"LUB GmbH - Frau Braune","Daniela","",null,"","",null,""]
[18,"LUB GmbH - Herr Kühne","Hans","Nevinghoff 40",48147,"Münster","0251/2376-912",611,""]
[17,"LUB GmbH - Frau Willebrand","Christiane","Waldenburger Straße 6",48231,"Warendorf","02581/637934",619,"Christiane.Willebrand@lwk.nrw.de"]
[16,"LUB GmbH - Frau Gödde","Kathrin","Grebbecker Weg 3",58509,"Lüdenscheid ","02351 969140 ",609,""]
[15,"LUB GmbH - Herrn Brunsiek","Falk","Bohlenweg 3",33034,"Brakel","05272/3701222",607,"Falk.Brunsiek@lwk.nrw.de"]
[14,"LUB Gmb - Herr Schulze Temming","Bernhard","Bohlenweg 3",33034,"Brakel","",400,""]
[13,"LUB GmbH - Frau Stelten","Gerda","Gereonstraße 80",41747,"Viersen","02162/370663",416,"Gerda.Stelten@lwk.nrw.de"]
[12,"LUB GmbH - Herr Sabbert","Stefan","Sedanplatz 9",32791,"Lage","05232/6082-75",608,""]
[11,"LUB GmbH - Herr Pohl","Georg","Rütger-von-Scheven Str. 44",52349,"Düren","02421/592318",405,""]
[10,"LUB GmbH - Herr U. Kalthoff","Uwe","Gartenstraße 11 a",50765,"Köln-Auweiler","0221/5340119",402,""]
[9,"LUB GmbH - Herrn Kersting","Josef","Dünnefeldweg 12",59872,"Meschede","0291/9915-34",606,"Josef.Kersting@lwk.nrw.de"]
[8,"LUB GmbH - Herrn M. Hoffmann","Marco","Nevinghoff 40",48147,"Münster","0251 2376 861",611,"Marco.Hoffmann@lwk.nrw.de"]
[7,"LUB GmbH - Herrn B. Hoffmann","Bernhard","Elsenpaß 5",47533,"Kleve","02821/996208",415,"Berhard.Hoffmann@lwk.nrw.de"]
[6,"LUB GmbH - Herr Hoepfner","Reinhard","Grebbecker Weg 3",58509,"Lüdenscheid","02351/969145",603,""]
[5,"LUB GmbH - Herrn Fry","Burkhard","Nevinghoff 40",48147,"Münster","0251/2376-326",499,"Burkhard.Fry@lwk.nrw.de"]
[4,"LUB GmbH - Herr Enning","Rudolf","Hembergener Str. 10",48369,"Saerbeck","02574/927764",618,""]
[3,"LUB GmbH - Herr Deitermann","Bernhard","Bohlenweg 3",33034,"Brakel","05272/3701221",607,"Bernhard.Deitermann@lwk.nrw.de"]
[2,"LBB - Herrn Dreimann","Wilhelm","Wellentruper Str. 14",33813,"Oerlinghausen","0171/7280027",null,"wilhelm@dreimann.net"]
[1,"GVAgrar West-Herrn Kemmerling","Christian","Buttenwall 17",46325,"Borken","02861/9027925",400,"gvagrar-westgvagrar.de"]

{"sheet":"Updates","index":15,"n_rows":37,"n_cols":6,"rows_kept":37,"cut":false,"hidden":true,"merged":[]}
[null,"Version","Ausgabe","Datum Freigabe","Nr.","Änderungen"]
[null,"2","1.10.08",null,null,"Zahlreiche Änderungen nach Angabe von Frau Kloß (siehe Unterlagen)"]
[null,null,null,null,null,"z.B. Löschen bestimmter Seiten, die nicht benötigt werden"]
[null,null,null,null,null,"Aufnahme eines Verwendungszwecks zu allen Belegen"]
[null,null,null,null,null,"Anpassung an neue Auslegung der ELER-Abrechnungsverordnung"]
[]
[null,null,null,null,null,"Realisierung des Einlesens aus Antragsdatei, z.b. Betriebsidentifikation und Fördermittel"]
[]
[null,null,null,null,null,"Überlegungen zu Einzeldarstellung für jeden Auszahlungsantrag"]
[]
[null,null,null,null,null,"Vorbereiten der Daten zum automatischen Auslesen"]
[]
[null,null,"27.04.09",null,null,"Fehler bei Löschen beseitigt"]
[null,null,null,null,null,"Dialogwerte im Kostenplan nach Speichern auf 0 setzen"]
[]
[null,null,"20.07.09","2009-07-21",null,"Sicherung und Schutzfunktionen überarbeitet"]
[]
[null,null,"16.11.09",null,null,"Überarbeitung gemäß Anforderung, Layout, Schutzfunktionen, Plausi Betrieb"]
[]
[null,"3","05.07.2010",null,null,"Überarbeitung Formatierungen, Schutzkonzept bereinigt, Datenkonsistenz"]
[null,null,"07.10.2010","2010-10-07",null,"Übernahme der Daten in VS-Seiten korrigiert"]
[null,null,"24.05.2011",null,null,"Korrektur von Fehlern und Übertragungsroutinen"]
[null,null,"18.01.2012","2012-01-18",null,"Korrektur von Fehlern, 12% Rundung; Textänderungen"]
[null,null,"18.04.2012",null,null,"Korrektur Übertragungsfehler, Schutz von Zellen, Aktivierungsreihenfolge"]
[null,null,null,null,null,"Blatt Aufteilung getrennt von anderen VNS-Seiten ausdruckbar gemacht "]
[]
[null,"3b","30.08.2013",null,null,"Blatt Aufteilung neu bearbeitet"]
[null,null,null,null,null,"Wechsel des Auszahlungsantrages in Dialog eingebaut"]
[null,null,null,null,null,"Genehmigung Vorzeitiger Beginn aufgenommen"]
[null,null,"05.09.2013",null,null,"Überarbeitung Erfassungsdialog analog AFP"]
[null,null,"11.09.2013",null,null,"Aufteilung Kontogruppen nach Auszahlungsanträgen (Tab7)"]
[null,null,null,null,null,"Ergänzung Betreuernamen auf VNS2 und im Dialog"]
[]
[null,null,"17.01.2018",null,null,"Tab7 in der Funktion aus den Makros rausgenommen"]
[null,null,null,null,null,"Überarbeitung der Texte in den Button von Tab0 über VisualBasic Formulare"]
[null,null,null,null,null,"Hinweis: nur Tab2 ungeschützt"]
[null,null,null,null,null,"Rechenhilfe Beleg zugefügt"]

{"sheet":"Liste","index":16,"n_rows":4,"n_cols":3,"rows_kept":4,"cut":false,"hidden":true,"merged":[]}
[]
[1,"VE Höxter-Lippe-Paderborn","Bohlenweg 3, 33034 Brakel"]
[2,"VE Rheinkreise","Gartenstr. 11, 50765 Köln"]
[3,"VE Steinfurt","Hembergener Straße 10, 48369 Saerbeck"]

{"sheet":"transfer","index":17,"n_rows":61,"n_cols":6,"rows_kept":61,"cut":false,"hidden":true,"merged":[]}
[235689,null,"Adressnummer",{"$f":"IF(ISTEXT(A1),\"o.k\",\"Fehler \")","v":"Fehler "}]
[{"$f":"AusAn!H17","v":1},null,"Nummer des Auszahlungsantrages",{"$f":"IF(ISNUMBER(A2),\"o.k\",\"Fehler \")","v":"o.k"}]
[{"$f":"AusAn!H41","v":1},null,"Nr. Grundantrag",{"$f":"IF(ISNUMBER(A3),\"o.k\",\"Fehler \")","v":"o.k"}]
[{"$f":"AusAn!#REF!","v":{"$error":"#REF!"}},null,"Jahr Grundantrag",{"$f":"IF(ISNUMBER(A4),\"o.k\",\"Fehler \")","v":"Fehler "}]
[{"$f":"AusAn!C3","v":" "},null,"Name Antrag",{"$f":"IF(ISTEXT(A5),\"o.k\",\"Fehler \")","v":"o.k"}]
[{"$f":"AusAn!C4","v":0},null,"Anschrift Antrag",{"$f":"IF(ISTEXT(A6),\"o.k\",\"Fehler \")","v":"Fehler "}]
[{"$f":"AusAn!C5","v":"  "},null,"PLZ und Ort Antrag",{"$f":"IF(ISTEXT(A7),\"o.k\",\"Fehler \")","v":"o.k"}]
[{"$f":"AusAn!E14","v":0},null,"Kreisstelle",{"$f":"IF(ISTEXT(A8),\"o.k\",\"Fehler \")","v":"Fehler "}]
[{"$f":"AusAn!D18","v":0},null,"Aktenzeichen",{"$f":"IF(ISTEXT(A9),\"o.k\",\"Fehler \")","v":"Fehler "}]
[{"$f":"AusAn!G19","v":"00:00:00"},null,"Datum Verwendungsnachweis",{"$f":"IF(ISNUMBER(A10),\"o.k\",\"Fehler \")","v":"o.k"}]
[{"$f":"AusAn!H28","v":0},null,"beantragte Zahlung von Zuschuss GAK",{"$f":"IF(ISNUMBER(A11),\"o.k\",\"Fehler \")","v":"o.k"},null,"~ Investitionen nach GAK"]
[{"$f":"AusAn!H29","v":0},null,"beantragte Zahlung für Organis,Konz,Beratg",{"$f":"IF(ISNUMBER(A12),\"o.k\",\"Fehler \")","v":"o.k"},null,"~ Organisation, Konzeption, Beratung"]
[{"$f":"AusAn!H30","v":0},null,"beantragte Zahlung Einrichtung, Ausstattung","o.k",null,"~ Einrichtung und Ausstattung"]
[{"$f":"AusAn!H31","v":0},null,"beantragte Zahlung Marketing; Sonstiges","o.k",null,"~ Marketing und Sonstiges"]
[{"$f":"AusAn!H32","v":0},null,"beantragte Startbeihilfe 1. J.","o.k",null,"~ Startbeihilfen für 1. Jahr"]
[{"$f":"AusAn!H33","v":0},null,"beantragte Startbeihilfe 2. J.","o.k",null,"~ Startbeihilfen für 2. Jahr"]
[{"$f":"AusAn!H34","v":0},null,"beantragte Startbeihilfe 3. J.","o.k",null,"~ Startbeihilfen für 3. Jahr"]
[{"$f":"AusAn!H35","v":0},null,"beantragte Zahlung Qulifizierung","o.k",null,"~ Qualifizierungsmaßnahmen"]
[{"$f":"AusAn!I28","v":""},null,"festgestellte Zahlung von Zuschuss GAK","Fehler "]
[{"$f":"AusAn!I29","v":""},null,"festgestellte Zahlung für Organis,Konz,Beratg","Fehler "]
[{"$f":"AusAn!I30","v":""},null,"festgestellte Zahlung Einrichtung, Ausstattung","Fehler "]
[{"$f":"AusAn!I31","v":""},null,"festgestellte Zahlung Marketing; Sonstiges",{"$f":"IF(ISTEXT(A22),\"o.k\",\"Fehler \")","v":"o.k"}]
[{"$f":"AusAn!I32","v":""},null,"festgestellte Startbeihilfe 1. J.",{"$f":"IF(ISTEXT(A23),\"o.k\",\"Fehler \")","v":"o.k"}]
[{"$f":"AusAn!I33","v":""},null,"festgestellte Startbeihilfe 2. J.",{"$f":"IF(ISTEXT(A24),\"o.k\",\"Fehler \")","v":"o.k"}]
[{"$f":"AusAn!I34","v":""},null,"festgestellte Startbeihilfe 3. J.",{"$f":"IF(ISTEXT(A25),\"o.k\",\"Fehler \")","v":"o.k"}]
[{"$f":"AusAn!I35","v":""},null,"festgestellte Zahlung Qulifizierung",{"$f":"IF(ISNUMBER(A26),\"o.k\",\"Fehler \")","v":"Fehler "}]
[{"$f":"'VNS4'!I10","v":0},null,"nachgew. Ausgaben Errichtung (GAK)",{"$f":"IF(ISNUMBER(A27),\"o.k\",\"Fehler \")","v":"o.k"},null,"Errichtung (GAK)"]
[{"$f":"'VNS4'!I11","v":0},null,"nachgew. Ausgaben Masch. Anlagen","o.k",null,"Maschinen, Anlagen (GAK)"]
[{"$f":"'VNS4'!I12","v":0},null,"nachgew. Ausgaben Allg. Aufwand GAK","o.k",null,"Allg. Aufwand (GAK)"]
[{"$f":"'VNS4'!I13","v":0},null,"nachgew. Ausgaben Organisation","o.k",null,"Organisation"]
[{"$f":"'VNS4'!I14","v":0},null,"nachgew. Ausgaben 1.J. Löhne, Soz.Abg.","o.k",null,"1. J. Löhne, Sozialabg."]
[{"$f":"'VNS4'!I15","v":0},null,"nachgew. Ausgaben 2.J. Löhne, Soz.Abg.","o.k",null,"2. J. Löhne, Sozialabg."]
[{"$f":"'VNS4'!I16","v":0},null,"nachgew. Ausgaben 3.J. Löhne, Soz.Abg.","o.k",null,"3. J. Löhne, Sozialabg."]
[{"$f":"'VNS4'!I17","v":0},null,"nachgew. Ausgaben Einrichtung/Ausstattg","o.k",null,"Einrichtg/Ausst - Sachausgaben "]
[{"$f":"'VNS4'!I18","v":0},null,"nachgew. Ausgaben Marketing, Sonst.","o.k",null,"Marketing, Sost. Sachausgaben"]
[{"$f":"'VNS4'!I19","v":0},null,"nachgew. Ausgaben Qualifizierung",{"$f":"IF(ISNUMBER(A38),\"o.k\",\"Fehler \")","v":"o.k"},null,"Qualifizierungsmaßnahmen"]
[{"$f":"'VNS4'!I20","v":0},null,"sonstige nachgew. sonstige Ausgaben ","o.k",null,"Sonstiges"]
[{"$f":"'VNS4'!I21","v":0},null,"nachgew. Ausgaben insgesamt",{"$f":"IF(ISNUMBER(#REF!),\"o.k\",\"Fehler \")","v":"Fehler "}]
[{"$f":"'VNS4'!I21-'VNS4'!F21","v":0},null,"Mehr oder Minderkosten","o.k"]
[{"$f":"'VNS4'!K9","v":0},null,"anerkannte Ausgaben Errichtung (GAK)","o.k"]
[{"$f":"'VNS4'!K10","v":0},null,"anerkannte Ausgaben Masch. Anlagen","o.k"]
[{"$f":"'VNS4'!K11","v":0},null,"anerkannte Ausgaben Allg. Aufwand GAK","o.k"]
[{"$f":"'VNS4'!K12","v":0},null,"anerkannte Ausgaben Organisation","o.k"]
[{"$f":"'VNS4'!K13","v":0},null,"anerkannte Ausgaben 1.J. Löhne, Soz.Abg.","o.k"]
[{"$f":"'VNS4'!K14","v":0},null,"anerkannte Ausgaben 2.J. Löhne, Soz.Abg.","o.k"]
[{"$f":"'VNS4'!K15","v":0},null,"anerkannte Ausgaben 3.J. Löhne, Soz.Abg.","o.k"]
[{"$f":"'VNS4'!K16","v":0},null,"anerkannte Ausgaben Einrichtung/Ausstattg","o.k"]
[{"$f":"'VNS4'!K17","v":0},null,"anerkannte Ausgaben Marketing, Sonst.","o.k"]
[{"$f":"'VNS4'!K19","v":0},null,"anerkannte Ausgaben Qualifizierung","o.k"]
[{"$f":"'VNS4'!K20","v":0},null,"sonstige anerkannte Ausgaben ","o.k"]
[{"$f":"'VNS4'!K21","v":0},null,"sonstige anerkannte ff. Ausgaben ","o.k"]
[{"$f":"'VNS4'!K22","v":0},null,"anerkannte Ausgaben insgesamt","o.k"]
[0,null,"Ausgaben zur Steigerung der Wettbewerbskraft","o.k"]
[0,null,"Ausgaben für besondere Anforderungen","o.k"]
[0,null,"Ausgaben für Erschließung","o.k"]
[0,null,"letzter Antrag Steigerung Wettbewerbsfähigkeit","o.k"]
[0,null,"letzter Antrag Besondere Anforderungen Tierh.","o.k"]
[0,null,"letzter Antrag Erschließung","o.k"]
["Robert Müller-List"]
["2013-09-11"]
[{"$f":"'VNS2'!E46","v":"ohne Betreuer"},null,"aktueller Betreuer"]

{"sheet":"Rechenhilfe Beleg","index":24,"n_rows":32,"n_cols":16,"rows_kept":32,"cut":false,"hidden":false,"merged":[[18,0,19,0],[18,1,19,1],[21,12,21,13],[0,12,0,13],[18,2,18,6],[18,7,18,11],[3,2,3,6],[3,7,3,11],[3,0,4,0],[3,1,4,1]]}
["Rechenhilfe Beleg",null,null,null,null,null,null,null,null,null,null,null,"Eingabefelder"]
["Rechnung (Nettobetrag)",null,"brutto",23800,{"$f":"IF(D2>0,IF(B24<>D2,\"   Vorsicht Rundungsdifferenz!\",\"\"), \"   Eingabe Bruttobetrag fehlt\")","v":""}]
[]
["Position, Nr., etc","gesamt","nicht zuwendungsfähig netto",null,null,null,null,"zuwendungsfähig netto",null,null,null,null,null,null,null,0]
[null,null,null,null,null,null,"gesamt",null,null,null,null,"gesamt"]
[1,{"$f":"G6+L6","v":5000},null,null,3000,2000,{"$f":"SUM(C6:F6)","v":5000},null,null,null,null,{"$f":"SUM(H6:K6)","v":0}]
[2,15000,null,null,null,null,{"$f":"SUM(C7:F7)","v":0},null,null,15000,null,{"$f":"SUM(H7:K7)","v":15000}]
[null,0,null,null,null,null,0,null,null,null,null,0]
[null,0,null,null,null,null,0,null,null,null,null,0]
[null,0,null,null,null,null,0,null,null,null,null,0]
[null,0,null,null,null,null,0,null,null,null,null,0]
[null,0,null,null,null,null,0,null,null,null,null,0]
[null,0,null,null,null,null,0,null,null,null,null,0]
[null,0,null,null,null,null,0,null,null,null,null,0]
[null,0,null,null,null,null,0,null,null,null,null,0]
["gesamt",{"$f":"G16+L16","v":20000},{"$f":"SUM(C6:C15)","v":0},0,3000,2000,5000,0,0,15000,0,15000]
[]
["Beleg-Nr."]
[7,"gesamt","nicht zuwendungsfähiger Anteil",null,null,null,null,"zuwendungsfähiger Anteil",null,null,null,null,null,null,null,0]
[null,null,null,null,null,null,"gesamt",null,null,null,null,"gesamt",null,null,null,7]
["netto (alt)",{"$f":"G21+L21","v":20000},{"$f":"C16","v":0},{"$f":"D16","v":0},{"$f":"E16","v":3000},{"$f":"F16","v":2000},{"$f":"SUM(C21:F21)","v":5000},{"$f":"H16","v":0},{"$f":"I16","v":0},{"$f":"J16","v":15000},{"$f":"K16","v":0},{"$f":"SUM(H21:K21)","v":15000},null,null,null,19]
["Ust-Satz in %",null,7,7,19,19,null,19,7,19,19,null,"Auswahlfelder"]
["Ust-Betrag",{"$f":"G23+L23","v":3800},{"$f":"ROUND((C21*C22/100),2)","v":0},{"$f":"ROUND((D21*D22/100),2)","v":0},570,{"$f":"ROUND((F21*F22/100),2)","v":380},{"$f":"SUM(C23:F23)","v":950},{"$f":"ROUND((H21*H22/100),2)","v":0},{"$f":"ROUND((I21*I22/100),2)","v":0},{"$f":"ROUND((J21*J22/100),2)","v":2850},{"$f":"ROUND((K21*K22/100),2)","v":0},{"$f":"SUM(H23:K23)","v":2850}]
["brutto",23800,{"$f":"C21+C23","v":0},{"$f":"D21+D23","v":0},3570,{"$f":"F21+F23","v":2380},5950,0,0,17850,{"$f":"K21+K23","v":0},17850]
["Skonto in %",null,2,0,2,0,null,2,5,2,0]
["Skonto-Betrag",{"$f":"G26+L26","v":428.4},{"$f":"ROUND((C24*C25/100),2)","v":0},{"$f":"ROUND((D24*D25/100),2)","v":0},71.400000000000006,{"$f":"ROUND((F24*F25/100),2)","v":0},71.400000000000006,0,0,357,{"$f":"ROUND((K24*K25/100),2)","v":0},357,{"$f":"IF(L26>0,\"Überprüfen!  Ist Skonto bei der Zahlung berücksichtigt worden?\",\"\")","v":"Überprüfen!  Ist Skonto bei der Zahlung berücksichtigt worden?"}]
["brutto ohne Skonto",23371.599999999999,{"$f":"C24-C26","v":0},{"$f":"D24-D26","v":0},3498.6,{"$f":"F24-F26","v":2380},5878.6,0,0,17493,{"$f":"K24-K26","v":0},17493]
["Ust-Satz in %",null,{"$f":"C22","v":7},{"$f":"D22","v":7},19,{"$f":"F22","v":19},null,19,7,19,{"$f":"K22","v":19}]
["Ust-Betrag",{"$f":"G29+L29","v":3731.6},{"$f":"C27-C30","v":0},{"$f":"D27-D30","v":0},558.59999999999991,{"$f":"F27-F30","v":380},938.59999999999991,0,0,2793,{"$f":"K27-K30","v":0},2793]
["netto (neu)",19640,{"$f":"ROUND((C27/(1+C28/100)),2)","v":0},{"$f":"ROUND((D27/(1+D28/100)),2)","v":0},2940,{"$f":"ROUND((F27/(1+F28/100)),2)","v":2000},4940,0,0,14700,{"$f":"ROUND((K27/(1+K28/100)),2)","v":0},14700]
[]
["ab hier kann selbst gerechnet werden"]